[Event "*** Titled Tuesday Blitz"]
[Site "Chess.com"]
[Date "2018.07.03"]
[Round "6"]
[White "1b31-0"]
[Black "51616516516"]
[Result "1-0"]
[WhiteElo "2204"]
[BlackElo "2206"]
[TimeControl "180+2"]
[EndTime "14:19:41 PDT"]
[Termination "1b31-0 won by checkmate"]

1. b3 {[%clk 0:03:01.9]} 1... a5 {[%clk 0:02:59.1]} 2. a3 {[%clk 0:02:58.7]}
2... Nf6 {[%clk 0:02:51.4]} 3. Bb2 {[%clk 0:02:58.6]} 3... d6 {[%clk 0:02:52.9]}
4. e3 {[%clk 0:02:59.3]} 4... g6 {[%clk 0:02:53.7]} 5. Bxf6 {[%clk 0:02:58.8]}
5... exf6 {[%clk 0:02:54.6]} 6. c4 {[%clk 0:03:00.7]} 6... Bg7 {[%clk
0:02:54.2]} 7. Nc3 {[%clk 0:03:00.9]} 7... f5 {[%clk 0:02:50]} 8. Nge2 {[%clk
0:02:58.7]} 8... b6 {[%clk 0:02:30]} 9. Rc1 {[%clk 0:02:49.9]} 9... Bb7 {[%clk
0:02:30]} 10. d4 {[%clk 0:02:46.4]} 10... O-O {[%clk 0:02:23.1]} 11. d5 {[%clk
0:02:37.8]} 11... c6 {[%clk 0:01:43.7]} 12. g3 {[%clk 0:02:35.5]} 12... cxd5
{[%clk 0:01:42.5]} 13. Nxd5 {[%clk 0:02:31.4]} 13... Nd7 {[%clk 0:01:32.6]} 14.
Bg2 {[%clk 0:02:31.2]} 14... Nc5 {[%clk 0:01:34.1]} 15. O-O {[%clk 0:02:26.4]}
15... Rb8 {[%clk 0:01:31.7]} 16. Nec3 {[%clk 0:02:08.7]} 16... Re8 {[%clk
0:01:23.9]} 17. h4 {[%clk 0:01:47.7]} 17... h5 {[%clk 0:01:14.4]} 18. Qd2 {[%clk
0:01:42]} 18... Nxb3 {[%clk 0:01:10.7]} 19. Qd3 {[%clk 0:01:40.5]} 19... Nxc1
{[%clk 0:01:07.1]} 20. Rxc1 {[%clk 0:01:42.4]} 20... Bxd5 {[%clk 0:01:05.6]} 21.
Nxd5 {[%clk 0:01:40]} 21... Qd7 {[%clk 0:01:00.8]} 22. Qb3 {[%clk 0:01:33.8]}
22... b5 {[%clk 0:01:00.7]} 23. cxb5 {[%clk 0:01:26.6]} 23... Rxb5 {[%clk
0:00:58.8]} 24. Qa4 {[%clk 0:01:24.1]} 24... Rb7 {[%clk 0:00:43.5]} 25. Qxa5
{[%clk 0:01:13.4]} 25... Ra7 {[%clk 0:00:44.5]} 26. Qb4 {[%clk 0:01:07.7]} 26...
Be5 {[%clk 0:00:38]} 27. Nb6 {[%clk 0:01:02.7]} 27... Qe6 {[%clk 0:00:14.3]} 28.
Bd5 {[%clk 0:01:01]} 28... Qf6 {[%clk 0:00:15.4]} 29. Bg2 {[%clk 0:00:59.5]}
29... Rb8 {[%clk 0:00:14.4]} 30. Nd7 {[%clk 0:00:51.9]} 30... Rxb4 {[%clk
0:00:03.9]} 31. Nxf6+ {[%clk 0:00:51.5]} 31... Bxf6 {[%clk 0:00:05.5]} 32. axb4
{[%clk 0:00:52.4]} 32... Ra2 {[%clk 0:00:06]} 33. b5 {[%clk 0:00:52]} 33... Rb2
{[%clk 0:00:06.9]} 34. Bc6 {[%clk 0:00:51.4]} 34... Kg7 {[%clk 0:00:05.6]} 35.
Kg2 {[%clk 0:00:48.9]} 35... Bd8 {[%clk 0:00:06.9]} 36. Kf3 {[%clk 0:00:49.2]}
36... Bb6 {[%clk 0:00:08]} 37. Bd7 {[%clk 0:00:49.8]} 37... Bc5 {[%clk
0:00:07.9]} 38. Ra1 {[%clk 0:00:46.4]} 38... Kf6 {[%clk 0:00:06.8]} 39. Ra8
{[%clk 0:00:40]} 39... Ke7 {[%clk 0:00:03.5]} 40. Bc6 {[%clk 0:00:40]} 40... Rb1
{[%clk 0:00:03.5]} 41. Re8+ {[%clk 0:00:40]} 41... Kf6 {[%clk 0:00:04.7]} 42.
Rc8 {[%clk 0:00:39.7]} 42... Ke7 {[%clk 0:00:04.3]} 43. Rc7+ {[%clk 0:00:40.6]}
43... Kf6 {[%clk 0:00:05.2]} 44. Be8 {[%clk 0:00:41.2]} 44... Ke5 {[%clk
0:00:05.2]} 45. Re7+ {[%clk 0:00:38.7]} 45... Kd5 {[%clk 0:00:04.6]} 46. Bc6+
{[%clk 0:00:38.4]} 46... Kc4 {[%clk 0:00:04.9]} 47. Rxf7 {[%clk 0:00:39.4]}
47... d5 {[%clk 0:00:05.1]} 48. Rd7 {[%clk 0:00:37.5]} 48... d4 {[%clk
0:00:06.5]} 49. Bd5+ {[%clk 0:00:35.4]} 49... Kc3 {[%clk 0:00:07.1]} 50. Rc7
{[%clk 0:00:32.2]} 50... Rxb5 {[%clk 0:00:06.7]} 51. exd4 {[%clk 0:00:30.9]}
51... Kxd4 {[%clk 0:00:07.5]} 52. Bf7 {[%clk 0:00:31.6]} 52... Rb6 {[%clk
0:00:07.9]} 53. Rc8 {[%clk 0:00:29.9]} 53... Ra6 {[%clk 0:00:08.3]} 54. Rg8
{[%clk 0:00:29.7]} 54... Ra3+ {[%clk 0:00:09.3]} 55. Kg2 {[%clk 0:00:29.9]}
55... Ke5 {[%clk 0:00:10.1]} 56. Bxg6 {[%clk 0:00:30.1]} 56... Ra2 {[%clk
0:00:11]} 57. Bxh5 {[%clk 0:00:29.8]} 57... Rxf2+ {[%clk 0:00:11.5]} 58. Kh3
{[%clk 0:00:31.3]} 58... Rf1 {[%clk 0:00:10.7]} 59. Re8+ {[%clk 0:00:30.8]}
59... Kd4 {[%clk 0:00:10.9]} 60. Re2 {[%clk 0:00:31.4]} 60... Bd6 {[%clk
0:00:10.7]} 61. Rd2+ {[%clk 0:00:31.1]} 61... Ke5 {[%clk 0:00:11.5]} 62. Re2+
{[%clk 0:00:31.5]} 62... Kf6 {[%clk 0:00:12.3]} 63. Kg2 {[%clk 0:00:31.5]} 63...
Rc1 {[%clk 0:00:12.6]} 64. Bf3 {[%clk 0:00:32.5]} 64... Rc3 {[%clk 0:00:13.3]}
65. Bd5 {[%clk 0:00:32.8]} 65... Rxg3+ {[%clk 0:00:13.3]} 66. Kf2 {[%clk
0:00:34.2]} 66... Rh3 {[%clk 0:00:14.6]} 67. Re6+ {[%clk 0:00:35.1]} 67... Kf7
{[%clk 0:00:16]} 68. Rxd6+ {[%clk 0:00:36.5]} 68... Ke7 {[%clk 0:00:17.5]} 69.
Rh6 {[%clk 0:00:37.4]} 69... Kd7 {[%clk 0:00:11.4]} 70. Be6+ {[%clk 0:00:37.7]}
70... Ke7 {[%clk 0:00:11.2]} 71. Bxf5 {[%clk 0:00:39.6]} 71... Ra3 {[%clk
0:00:10.7]} 72. Bg4 {[%clk 0:00:39.7]} 72... Kf7 {[%clk 0:00:11.8]} 73. Bf3
{[%clk 0:00:39.7]} 73... Kg7 {[%clk 0:00:13.2]} 74. Rc6 {[%clk 0:00:39.4]} 74...
Ra4 {[%clk 0:00:13]} 75. h5 {[%clk 0:00:40.7]} 75... Ra3 {[%clk 0:00:13.6]} 76.
Kg3 {[%clk 0:00:41.6]} 76... Ra4 {[%clk 0:00:15.1]} 77. Bg4 {[%clk 0:00:42]}
77... Kh7 {[%clk 0:00:14.7]} 78. Kh4 {[%clk 0:00:43.1]} 78... Ra5 {[%clk
0:00:15.6]} 79. Rf6 {[%clk 0:00:43]} 79... Kg7 {[%clk 0:00:16.8]} 80. Rg6+
{[%clk 0:00:44]} 80... Kh7 {[%clk 0:00:18.3]} 81. Rc6 {[%clk 0:00:42.2]} 81...
Kg7 {[%clk 0:00:19.5]} 82. h6+ {[%clk 0:00:42.4]} 82... Kh7 {[%clk 0:00:20.5]}
83. Kg3 {[%clk 0:00:43.1]} 83... Ra4 {[%clk 0:00:15.9]} 84. Bf3 {[%clk
0:00:43.2]} 84... Rb4 {[%clk 0:00:15.2]} 85. Re6 {[%clk 0:00:44.1]} 85... Rd4
{[%clk 0:00:15.7]} 86. Be4+ {[%clk 0:00:45.3]} 86... Kh8 {[%clk 0:00:15.8]} 87.
Kf4 {[%clk 0:00:47.2]} 87... Ra4 {[%clk 0:00:16.5]} 88. Re8# {[%clk 0:00:48.3]}
1-0

[Event "*** Titled Tuesday Blitz"]
[Site "Chess.com"]
[Date "2018.07.03"]
[Round "6"]
[White "meoluoi91"]
[Black "timator"]
[Result "1-0"]
[WhiteElo "2501"]
[BlackElo "2353"]
[TimeControl "180+2"]
[EndTime "14:19:49 PDT"]
[Termination "meoluoi91 won by resignation"]

1. d4 {[%clk 0:02:55.4]} 1... Nf6 {[%clk 0:02:57.6]} 2. c4 {[%clk 0:02:55.4]}
2... e6 {[%clk 0:02:58.3]} 3. Nc3 {[%clk 0:02:55.5]} 3... Bb4 {[%clk 0:02:57.6]}
4. Qc2 {[%clk 0:02:54.6]} 4... O-O {[%clk 0:02:58.2]} 5. a3 {[%clk 0:02:54.1]}
5... Bxc3+ {[%clk 0:02:58.4]} 6. Qxc3 {[%clk 0:02:55.1]} 6... b6 {[%clk
0:02:59.5]} 7. f3 {[%clk 0:02:55.9]} 7... d5 {[%clk 0:02:59.4]} 8. Bg5 {[%clk
0:02:53.2]} 8... c6 {[%clk 0:02:57.6]} 9. e3 {[%clk 0:02:53.8]} 9... Bb7 {[%clk
0:02:58.4]} 10. Bd3 {[%clk 0:02:54.3]} 10... Nbd7 {[%clk 0:02:59.6]} 11. cxd5
{[%clk 0:02:35.7]} 11... exd5 {[%clk 0:02:35.3]} 12. Ne2 {[%clk 0:02:35.2]}
12... h6 {[%clk 0:02:35.7]} 13. Bh4 {[%clk 0:02:36]} 13... Re8 {[%clk
0:02:36.3]} 14. Bf2 {[%clk 0:02:36.6]} 14... c5 {[%clk 0:02:37.2]} 15. O-O
{[%clk 0:02:37.5]} 15... Rc8 {[%clk 0:02:36.2]} 16. Qd2 {[%clk 0:02:37.9]} 16...
Qe7 {[%clk 0:02:34.1]} 17. Rac1 {[%clk 0:02:37.4]} 17... a6 {[%clk 0:02:26.3]}
18. Ng3 {[%clk 0:02:38]} 18... g6 {[%clk 0:02:23.6]} 19. Rfe1 {[%clk 0:02:37.5]}
19... Kg7 {[%clk 0:02:15.2]} 20. Bb1 {[%clk 0:02:36.3]} 20... b5 {[%clk
0:02:10.3]} 21. Ne2 {[%clk 0:02:17.9]} 21... c4 {[%clk 0:02:00.7]} 22. Ng3
{[%clk 0:02:16.6]} 22... Red8 {[%clk 0:01:38.1]} 23. h3 {[%clk 0:02:16.6]} 23...
Bc6 {[%clk 0:01:31.5]} 24. e4 {[%clk 0:02:16.3]} 24... dxe4 {[%clk 0:01:32.4]}
25. fxe4 {[%clk 0:02:17.1]} 25... Nc5 {[%clk 0:01:23]} 26. Rcd1 {[%clk
0:01:53.6]} 26... Nb3 {[%clk 0:01:13.1]} 27. Qf4 {[%clk 0:01:47.6]} 27... b4
{[%clk 0:00:49.9]} 28. Be3 {[%clk 0:01:26.5]} 28... Ng8 {[%clk 0:00:42.3]} 29.
axb4 {[%clk 0:01:23.6]} 29... Qxb4 {[%clk 0:00:44.2]} 30. Rf1 {[%clk 0:01:10.6]}
30... Qe7 {[%clk 0:00:44.6]} 31. d5 {[%clk 0:01:07.4]} 31... Bb5 {[%clk
0:00:42.9]} 32. Rf3 {[%clk 0:00:57.9]} 32... f6 {[%clk 0:00:23.2]} 33. Bc2
{[%clk 0:00:45.7]} 33... Qe5 {[%clk 0:00:20.9]} 34. Qxe5 {[%clk 0:00:44]} 34...
fxe5 {[%clk 0:00:22.8]} 35. h4 {[%clk 0:00:32.1]} 35... Rf8 {[%clk 0:00:21.5]}
36. h5 {[%clk 0:00:31.2]} 36... Rxf3 {[%clk 0:00:20.6]} 37. gxf3 {[%clk
0:00:33.1]} 37... Ne7 {[%clk 0:00:21.1]} 38. d6 {[%clk 0:00:29]} 38... Nc6
{[%clk 0:00:21.5]} 39. d7 {[%clk 0:00:27.7]} 39... Ra8 {[%clk 0:00:19.5]} 40.
Bb6 {[%clk 0:00:27.7]} 40... Nbd4 {[%clk 0:00:19.7]} 41. Bb1 {[%clk 0:00:18.2]}
41... Kf6 {[%clk 0:00:17.9]} 42. Kf2 {[%clk 0:00:18.4]} 42... gxh5 {[%clk
0:00:16.6]} 43. Nf5 {[%clk 0:00:18.3]} 43... Ke6 {[%clk 0:00:16.6]} 44. Nxd4+
{[%clk 0:00:18.8]} 44... exd4 {[%clk 0:00:18.4]} 45. Bxd4 {[%clk 0:00:19.2]}
45... Nxd4 {[%clk 0:00:19.7]} 46. Rxd4 {[%clk 0:00:20.4]} 46... Bxd7 {[%clk
0:00:21]} 47. Rxc4 {[%clk 0:00:21.7]} 47... Bb5 {[%clk 0:00:22]} 48. Rc5 {[%clk
0:00:22.6]} 48... Rd8 {[%clk 0:00:20.7]} 49. Ke3 {[%clk 0:00:22]} 49... Rd1
{[%clk 0:00:19.5]} 50. Ba2+ {[%clk 0:00:23.2]} 50... Kf6 {[%clk 0:00:20.7]} 51.
Rxh5 {[%clk 0:00:24.7]} 51... Kg6 {[%clk 0:00:21.4]} 52. Rh2 {[%clk 0:00:25.9]}
52... Re1+ {[%clk 0:00:22.1]} 53. Kf4 {[%clk 0:00:25.9]} 53... h5 {[%clk
0:00:23.1]} 54. Be6 {[%clk 0:00:22.9]} 54... Rf1 {[%clk 0:00:22.5]} 55. Bf5+
{[%clk 0:00:20.2]} 55... Kh6 {[%clk 0:00:21.9]} 56. Bg4 {[%clk 0:00:21.4]} 56...
Be8 {[%clk 0:00:23.4]} 57. Bc8 {[%clk 0:00:20.9]} 57... a5 {[%clk 0:00:23.2]}
58. Ke3 {[%clk 0:00:22.1]} 58... a4 {[%clk 0:00:22.5]} 59. f4 {[%clk 0:00:22.8]}
59... Re1+ {[%clk 0:00:23.6]} 60. Kd4 {[%clk 0:00:23.9]} 60... Bc6 {[%clk
0:00:22]} 61. Bf5 {[%clk 0:00:23.7]} 61... Rc1 {[%clk 0:00:20]} 62. Ke5 {[%clk
0:00:23.5]} 62... Rf1 {[%clk 0:00:20]} 63. Rc2 {[%clk 0:00:24.4]} 63... Bb5
{[%clk 0:00:20.8]} 64. Rh2 {[%clk 0:00:22.3]} 64... Be8 {[%clk 0:00:20.8]} 65.
Be6 {[%clk 0:00:23.2]} 65... Rc1 {[%clk 0:00:11.4]} 66. f5 {[%clk 0:00:24]}
66... Kg5 {[%clk 0:00:09.4]} 67. Rg2+ {[%clk 0:00:20.3]} 67... Kh4 {[%clk
0:00:10.5]} 68. f6 {[%clk 0:00:20.9]} 68... Rf1 {[%clk 0:00:11.1]} 69. Bf5
{[%clk 0:00:21.2]} 69... Bf7 {[%clk 0:00:10.9]} 70. Kd6 {[%clk 0:00:21.8]} 70...
Bb3 {[%clk 0:00:11.8]} 71. Ke7 {[%clk 0:00:22]} 71... Rc1 {[%clk 0:00:09.6]} 72.
e5 {[%clk 0:00:20.4]} 72... Rc7+ {[%clk 0:00:08]} 73. Kf8 {[%clk 0:00:19.5]}
73... Ra7 {[%clk 0:00:09.9]} 74. e6 {[%clk 0:00:20.1]} 74... Ra8+ {[%clk
0:00:09.4]} 75. Kg7 {[%clk 0:00:21.3]} 75... Ra7+ {[%clk 0:00:11.3]} 76. f7
{[%clk 0:00:22.6]} 1-0

[Event "*** Titled Tuesday Blitz"]
[Site "Chess.com"]
[Date "2018.07.03"]
[Round "6"]
[White "OparinGrigoriy"]
[Black "David_Paravyan"]
[Result "1/2-1/2"]
[WhiteElo "2882"]
[BlackElo "2710"]
[TimeControl "180+2"]
[EndTime "14:20:01 PDT"]
[Termination "Game drawn by repetition"]

1. Nf3 {[%clk 0:03:01.9]} 1... d5 {[%clk 0:02:58.4]} 2. c4 {[%clk 0:03:01.8]}
2... e6 {[%clk 0:02:59.4]} 3. g3 {[%clk 0:03:02.4]} 3... Nf6 {[%clk 0:03:00.8]}
4. Bg2 {[%clk 0:03:00.4]} 4... Be7 {[%clk 0:03:02.2]} 5. b3 {[%clk 0:03:01.6]}
5... O-O {[%clk 0:03:02.5]} 6. Bb2 {[%clk 0:03:02.8]} 6... c5 {[%clk 0:03:03.3]}
7. Ne5 {[%clk 0:02:55.1]} 7... b6 {[%clk 0:02:43.5]} 8. cxd5 {[%clk 0:02:49.3]}
8... exd5 {[%clk 0:02:29.4]} 9. O-O {[%clk 0:02:49.8]} 9... Bb7 {[%clk
0:02:29.8]} 10. d4 {[%clk 0:02:50.8]} 10... Nc6 {[%clk 0:02:28.1]} 11. Nxc6
{[%clk 0:02:50.1]} 11... Bxc6 {[%clk 0:02:30]} 12. Nc3 {[%clk 0:02:51.7]} 12...
cxd4 {[%clk 0:02:29.2]} 13. Qxd4 {[%clk 0:02:52]} 13... Bc5 {[%clk 0:02:30.1]}
14. Qd2 {[%clk 0:02:49.7]} 14... Qe7 {[%clk 0:02:02.2]} 15. Rad1 {[%clk
0:02:42.6]} 15... Rad8 {[%clk 0:02:01.9]} 16. e3 {[%clk 0:02:19.1]} 16... Rfe8
{[%clk 0:01:29.6]} 17. Rfe1 {[%clk 0:02:12.3]} 17... h6 {[%clk 0:01:13.6]} 18.
Qc1 {[%clk 0:02:03.9]} 18... a5 {[%clk 0:01:08.5]} 19. Ne2 {[%clk 0:02:00.5]}
19... Ne4 {[%clk 0:01:07]} 20. Nf4 {[%clk 0:01:55.8]} 20... Bb7 {[%clk
0:01:00.8]} 21. Re2 {[%clk 0:01:50.4]} 21... Ba6 {[%clk 0:00:58]} 22. Rc2 {[%clk
0:01:50.9]} 22... Nxf2 {[%clk 0:00:57]} 23. Rxf2 {[%clk 0:01:49.2]} 23... Bxe3
{[%clk 0:00:50.8]} 24. Qc3 {[%clk 0:01:01.8]} 24... d4 {[%clk 0:00:47.6]} 25.
Qe1 {[%clk 0:01:02.8]} 25... Qc5 {[%clk 0:00:30.3]} 26. Nd3 {[%clk 0:00:49.8]}
26... Qb5 {[%clk 0:00:30.9]} 27. Kh1 {[%clk 0:00:41.2]} 27... Bxf2 {[%clk
0:00:29.3]} 28. Qxf2 {[%clk 0:00:41.6]} 28... Re3 {[%clk 0:00:30.5]} 29. Nf4
{[%clk 0:00:41.5]} 29... Qe8 {[%clk 0:00:26.8]} 30. h4 {[%clk 0:00:26.1]} 30...
d3 {[%clk 0:00:26.9]} 31. Bc1 {[%clk 0:00:17.3]} 31... Re5 {[%clk 0:00:23.1]}
32. Bb2 {[%clk 0:00:16.2]} 32... Re3 {[%clk 0:00:18.4]} 33. Rd2 {[%clk
0:00:16.5]} 33... Re1+ {[%clk 0:00:11.4]} 34. Kh2 {[%clk 0:00:17.3]} 34... Qe3
{[%clk 0:00:13]} 35. Qxe3 {[%clk 0:00:13.4]} 35... Rxe3 {[%clk 0:00:14.8]} 36.
Bf1 {[%clk 0:00:14.8]} 36... g5 {[%clk 0:00:15.9]} 37. hxg5 {[%clk 0:00:14.6]}
37... hxg5 {[%clk 0:00:17.8]} 38. Ng2 {[%clk 0:00:15.1]} 38... Rf3 {[%clk
0:00:18.8]} 39. Kg1 {[%clk 0:00:16.3]} 39... Rxg3 {[%clk 0:00:19.2]} 40. Kf2
{[%clk 0:00:17]} 40... Rg4 {[%clk 0:00:20.4]} 41. Ne1 {[%clk 0:00:14]} 41...
Rf4+ {[%clk 0:00:20.2]} 42. Kg1 {[%clk 0:00:15.3]} 42... Rg4+ {[%clk 0:00:18.3]}
43. Kf2 {[%clk 0:00:15.1]} 43... Rf4+ {[%clk 0:00:19.3]} 44. Kg1 {[%clk
0:00:16.2]} 44... a4 {[%clk 0:00:19.7]} 45. Be5 {[%clk 0:00:08.2]} 45... Re4
{[%clk 0:00:19.2]} 46. Bg3 {[%clk 0:00:09.7]} 46... axb3 {[%clk 0:00:19.2]} 47.
axb3 {[%clk 0:00:11.6]} 47... f6 {[%clk 0:00:16.4]} 48. Bf2 {[%clk 0:00:09.1]}
48... Rg4+ {[%clk 0:00:13.5]} 49. Bg2 {[%clk 0:00:06.5]} 49... Rb4 {[%clk
0:00:13.7]} 50. Bh3 {[%clk 0:00:03]} 50... g4 {[%clk 0:00:13.2]} 51. Bg2 {[%clk
0:00:02.7]} 51... Rxb3 {[%clk 0:00:13.8]} 52. Be4 {[%clk 0:00:04.2]} 52... Kg7
{[%clk 0:00:12.4]} 53. Kg2 {[%clk 0:00:04.8]} 53... Rd7 {[%clk 0:00:12.1]} 54.
Kg3 {[%clk 0:00:06.1]} 54... Bb7 {[%clk 0:00:12.7]} 55. Bf5 {[%clk 0:00:06.9]}
55... Rd5 {[%clk 0:00:11.2]} 56. Be6 {[%clk 0:00:08.2]} 56... f5 {[%clk
0:00:05.8]} 57. Bxd5 {[%clk 0:00:07.7]} 57... Bxd5 {[%clk 0:00:07.6]} 58. Kf4
{[%clk 0:00:08.8]} 58... Be4 {[%clk 0:00:06.9]} 59. Ra2 {[%clk 0:00:07.8]} 59...
Kf6 {[%clk 0:00:07.5]} 60. Bd4+ {[%clk 0:00:07.1]} 60... Ke6 {[%clk 0:00:08.3]}
61. Be3 {[%clk 0:00:08.1]} 61... Rb1 {[%clk 0:00:08.2]} 62. Bd2 {[%clk
0:00:09.2]} 62... Kd5 {[%clk 0:00:06.2]} 63. Ra3 {[%clk 0:00:08.9]} 63... Kc4
{[%clk 0:00:06.5]} 64. Rc3+ {[%clk 0:00:09.8]} 64... Kd5 {[%clk 0:00:07.3]} 65.
Nxd3 {[%clk 0:00:10.5]} 65... Rf1+ {[%clk 0:00:08]} 66. Kg5 {[%clk 0:00:11.1]}
66... Bxd3 {[%clk 0:00:08.4]} 67. Rxd3+ {[%clk 0:00:13]} 67... Ke4 {[%clk
0:00:09.7]} 68. Re3+ {[%clk 0:00:13.1]} 68... Kd4 {[%clk 0:00:10.3]} 69. Rb3
{[%clk 0:00:14.6]} 69... Rf3 {[%clk 0:00:08.6]} 70. Rb4+ {[%clk 0:00:14.2]}
70... Kd3 {[%clk 0:00:08.9]} 71. Bf4 {[%clk 0:00:14.5]} 71... g3 {[%clk
0:00:09.6]} 72. Rb2 {[%clk 0:00:13.5]} 72... Ke4 {[%clk 0:00:06.1]} 73. Rb4+
{[%clk 0:00:13.2]} 73... Kd3 {[%clk 0:00:07]} 74. Rb2 {[%clk 0:00:14.4]} 74...
Ke4 {[%clk 0:00:07.5]} 75. Rb4+ {[%clk 0:00:15.1]} 75... Kd3 {[%clk 0:00:08.5]}
1/2-1/2

[Event "*** Titled Tuesday Blitz"]
[Site "Chess.com"]
[Date "2018.07.03"]
[Round "6"]
[White "Quiet_Desperation"]
[Black "BlackBoarder"]
[Result "1/2-1/2"]
[WhiteElo "1869"]
[BlackElo "2240"]
[TimeControl "180+2"]
[EndTime "14:20:51 PDT"]
[Termination "Game drawn - insufficient material"]

1. e4 {[%clk 0:03:01.9]} 1... e6 {[%clk 0:02:45.4]} 2. d4 {[%clk 0:03:01.8]}
2... d5 {[%clk 0:02:44.6]} 3. Nc3 {[%clk 0:03:03.3]} 3... Bb4 {[%clk 0:02:45.1]}
4. exd5 {[%clk 0:03:04.6]} 4... exd5 {[%clk 0:02:46]} 5. Nf3 {[%clk 0:03:06.1]}
5... Nf6 {[%clk 0:02:47]} 6. Bg5 {[%clk 0:03:06.7]} 6... O-O {[%clk 0:02:47.2]}
7. Be2 {[%clk 0:03:08]} 7... h6 {[%clk 0:02:48]} 8. Bh4 {[%clk 0:03:09]} 8... g5
{[%clk 0:02:49.1]} 9. Bg3 {[%clk 0:03:09.8]} 9... Ne4 {[%clk 0:02:50.4]} 10. O-O
{[%clk 0:03:08.8]} 10... Nxc3 {[%clk 0:02:44.7]} 11. bxc3 {[%clk 0:03:09.7]}
11... Bxc3 {[%clk 0:02:46.6]} 12. Rb1 {[%clk 0:03:09.6]} 12... Nc6 {[%clk
0:02:41.6]} 13. Rb3 {[%clk 0:03:08.2]} 13... Ba5 {[%clk 0:02:41.7]} 14. Ne5
{[%clk 0:02:56.4]} 14... Nxe5 {[%clk 0:02:39.6]} 15. Bxe5 {[%clk 0:02:55.9]}
15... f6 {[%clk 0:02:37.5]} 16. Bg3 {[%clk 0:02:55]} 16... Bb6 {[%clk
0:02:30.9]} 17. f4 {[%clk 0:02:50.4]} 17... Bf5 {[%clk 0:02:27.9]} 18. fxg5
{[%clk 0:02:49.6]} 18... fxg5 {[%clk 0:02:29.8]} 19. Be5 {[%clk 0:02:50.1]}
19... Qe7 {[%clk 0:02:24.1]} 20. Kh1 {[%clk 0:02:50.8]} 20... c5 {[%clk
0:02:20.6]} 21. c3 {[%clk 0:02:49.3]} 21... c4 {[%clk 0:02:19.1]} 22. Rb5 {[%clk
0:02:46.2]} 22... Be4 {[%clk 0:02:08]} 23. Bf3 {[%clk 0:02:47.3]} 23... Bxf3
{[%clk 0:02:04.1]} 24. Rxf3 {[%clk 0:02:48.2]} 24... Qd7 {[%clk 0:01:56.7]} 25.
Rb1 {[%clk 0:02:39.7]} 25... Rxf3 {[%clk 0:01:39.9]} 26. Qxf3 {[%clk 0:02:39.2]}
26... Rf8 {[%clk 0:01:40.7]} 27. Qh5 {[%clk 0:02:38.6]} 27... Qe6 {[%clk
0:01:38.8]} 28. h3 {[%clk 0:02:36.5]} 28... Rf7 {[%clk 0:01:31.1]} 29. a4 {[%clk
0:02:29.6]} 29... Ba5 {[%clk 0:01:17.5]} 30. Rc1 {[%clk 0:01:50]} 30... Bc7
{[%clk 0:01:11.9]} 31. Re1 {[%clk 0:01:48.4]} 31... Bxe5 {[%clk 0:00:47.5]} 32.
Rxe5 {[%clk 0:01:48.6]} 32... Qd6 {[%clk 0:00:29]} 33. Qg4 {[%clk 0:01:40]}
33... Kg7 {[%clk 0:00:26.7]} 34. h4 {[%clk 0:01:28.6]} 34... Rf4 {[%clk
0:00:22.5]} 35. Qc8 {[%clk 0:01:13.9]} 35... Rxh4+ {[%clk 0:00:20.5]} 36. Kg1
{[%clk 0:01:15.2]} 36... Rf4 {[%clk 0:00:08.4]} 37. Qxb7+ {[%clk 0:01:12.6]}
37... Rf7 {[%clk 0:00:09.5]} 38. Qa8 {[%clk 0:01:10.2]} 38... Qf6 {[%clk
0:00:06]} 39. Qxd5 {[%clk 0:01:04.5]} 39... Qf2+ {[%clk 0:00:06.7]} 40. Kh2
{[%clk 0:01:05.6]} 40... Qf4+ {[%clk 0:00:06.2]} 41. Kg1 {[%clk 0:01:05.6]}
41... Qc1+ {[%clk 0:00:07.4]} 42. Kh2 {[%clk 0:01:06.9]} 42... Qxc3 {[%clk
0:00:08.6]} 43. Re6 {[%clk 0:00:53.8]} 43... Qd3 {[%clk 0:00:06.4]} 44. Qe5+
{[%clk 0:00:53.9]} 44... Kh7 {[%clk 0:00:07.8]} 45. Re7 {[%clk 0:00:50.4]} 45...
Qg6 {[%clk 0:00:06.8]} 46. Rxf7+ {[%clk 0:00:45.5]} 46... Qxf7 {[%clk
0:00:08.7]} 47. d5 {[%clk 0:00:42.7]} 47... Kg6 {[%clk 0:00:07.8]} 48. d6 {[%clk
0:00:37.9]} 48... Qd7 {[%clk 0:00:06.9]} 49. Kg3 {[%clk 0:00:27.6]} 49... c3
{[%clk 0:00:07.8]} 50. Kf3 {[%clk 0:00:24]} 50... c2 {[%clk 0:00:07.1]} 51. Qc5
{[%clk 0:00:24]} 51... c1=Q {[%clk 0:00:04.8]} 52. Qxc1 {[%clk 0:00:24.7]} 52...
Qxd6 {[%clk 0:00:06.2]} 53. Qc2+ {[%clk 0:00:23.4]} 53... Kf6 {[%clk 0:00:07.3]}
54. Qh7 {[%clk 0:00:24.5]} 54... Qd5+ {[%clk 0:00:07.5]} 55. Ke2 {[%clk
0:00:21.9]} 55... Qxg2+ {[%clk 0:00:07.6]} 56. Ke1 {[%clk 0:00:22.8]} 56... Qg3+
{[%clk 0:00:07.4]} 57. Kd1 {[%clk 0:00:23.1]} 57... Qg4+ {[%clk 0:00:07.9]} 58.
Kc1 {[%clk 0:00:23.1]} 58... Qc4+ {[%clk 0:00:08.3]} 59. Kb2 {[%clk 0:00:23.2]}
59... Qb4+ {[%clk 0:00:08.1]} 60. Kc1 {[%clk 0:00:23.6]} 60... Qa3+ {[%clk
0:00:08.8]} 61. Kd2 {[%clk 0:00:22.3]} 61... Qa2+ {[%clk 0:00:09.5]} 62. Kc1
{[%clk 0:00:22.9]} 62... Qa1+ {[%clk 0:00:09.4]} 63. Kd2 {[%clk 0:00:23.5]}
63... Qd4+ {[%clk 0:00:10.5]} 64. Kc1 {[%clk 0:00:24.3]} 64... Qf4+ {[%clk
0:00:09.3]} 65. Kb2 {[%clk 0:00:24]} 65... Qxa4 {[%clk 0:00:04.2]} 66. Qxh6+
{[%clk 0:00:24.3]} 66... Kf5 {[%clk 0:00:05.4]} 67. Qf8+ {[%clk 0:00:22.6]}
67... Kg4 {[%clk 0:00:06.1]} 68. Qc8+ {[%clk 0:00:22.1]} 68... Kg3 {[%clk
0:00:06.7]} 69. Qc7+ {[%clk 0:00:22.5]} 69... Kh3 {[%clk 0:00:03.6]} 70. Qh7+
{[%clk 0:00:21.7]} 70... Kg2 {[%clk 0:00:03.9]} 71. Qb7+ {[%clk 0:00:18.6]}
71... Kf2 {[%clk 0:00:04.9]} 72. Qf7+ {[%clk 0:00:18.6]} 72... Ke3 {[%clk
0:00:04.1]} 73. Qe7+ {[%clk 0:00:19]} 73... Qe4 {[%clk 0:00:04.5]} 74. Qxg5+
{[%clk 0:00:17.8]} 74... Kd4 {[%clk 0:00:03.2]} 75. Qd8+ {[%clk 0:00:15.1]}
75... Kc4 {[%clk 0:00:04.2]} 76. Qc7+ {[%clk 0:00:14.6]} 76... Kd5 {[%clk
0:00:05.1]} 77. Qb7+ {[%clk 0:00:14.9]} 77... Ke5 {[%clk 0:00:05.7]} 78. Qxa7
{[%clk 0:00:15.8]} 78... Qe2+ {[%clk 0:00:06.4]} 79. Kc1 {[%clk 0:00:16.1]}
79... Qe1+ {[%clk 0:00:07.4]} 80. Kc2 {[%clk 0:00:17.1]} 80... Qe4+ {[%clk
0:00:08.1]} 81. Kc1 {[%clk 0:00:17.5]} 81... Qc4+ {[%clk 0:00:08.9]} 82. Kb2
{[%clk 0:00:18.3]} 82... Qb4+ {[%clk 0:00:09.9]} 83. Kc2 {[%clk 0:00:18.8]}
83... Qc4+ {[%clk 0:00:09.5]} 84. Kd2 {[%clk 0:00:19.5]} 84... Qd5+ {[%clk
0:00:10]} 85. Kc2 {[%clk 0:00:20.2]} 85... Qc6+ {[%clk 0:00:11.2]} 86. Kb3
{[%clk 0:00:20.9]} 86... Qb5+ {[%clk 0:00:12.2]} 87. Ka3 {[%clk 0:00:21.5]}
87... Qd3+ {[%clk 0:00:11.9]} 88. Kb2 {[%clk 0:00:22.2]} 88... Qd2+ {[%clk
0:00:12.8]} 89. Kb3 {[%clk 0:00:22.8]} 89... Qd1+ {[%clk 0:00:12.4]} 90. Kb2
{[%clk 0:00:23.9]} 90... Qe2+ {[%clk 0:00:09.9]} 91. Kb3 {[%clk 0:00:24.2]}
91... Qb5+ {[%clk 0:00:08.7]} 92. Kc2 {[%clk 0:00:24.5]} 92... Kd5 {[%clk
0:00:07.8]} 93. Qa2+ {[%clk 0:00:24.1]} 93... Kc5 {[%clk 0:00:07.3]} 94. Qa3+
{[%clk 0:00:24]} 94... Kc6 {[%clk 0:00:07.8]} 95. Qc3+ {[%clk 0:00:23.9]} 95...
Kd7 {[%clk 0:00:08.5]} 96. Qd3+ {[%clk 0:00:25.1]} 96... Qxd3+ {[%clk
0:00:09.4]} 97. Kxd3 {[%clk 0:00:27]} 1/2-1/2